[Event "Live Chess"]
[Site "Chess.com"]
[Date "2023.05.21"]
[Round "-"]
[White "onemoretime1975"]
[Black "Duke_of_Bebington"]
[Result "1-0"]
[WhiteElo "1856"]
[BlackElo "1582"]
[TimeControl "300"]
[EndTime "5:21:47 PDT"]
[Termination "onemoretime1975 won by resignation"]

1. e4 {[%clk 0:04:57.3]} 1... e5 {[%clk 0:04:57.9]} 2. Nf3 {[%clk 0:04:55.4]}
2... Nf6 {[%clk 0:04:54.1]} 3. Nc3 {[%clk 0:04:52.5]} 3... Nc6 {[%clk
0:04:52.7]} 4. Bb5 {[%clk 0:04:48.8]} 4... Nd4 {[%clk 0:04:51.3]} 5. d3 {[%clk
0:04:37.5]} 5... Nxb5 {[%clk 0:04:33.4]} 6. Nxb5 {[%clk 0:04:35.5]} 6... c6
{[%clk 0:04:32.6]} 7. Nc3 {[%clk 0:04:33]} 7... d6 {[%clk 0:04:30.3]} 8. Bg5
{[%clk 0:04:29.2]} 8... Be7 {[%clk 0:04:28.8]} 9. d4 {[%clk 0:04:27]} 9... h6
{[%clk 0:04:18.2]} 10. Bh4 {[%clk 0:04:24]} 10... exd4 {[%clk 0:04:10.2]} 11.
Nxd4 {[%clk 0:04:22]} 11... O-O {[%clk 0:04:08.8]} 12. O-O {[%clk 0:04:19.8]}
12... Re8 {[%clk 0:04:05]} 13. Re1 {[%clk 0:04:18.1]} 13... Qb6 {[%clk
0:03:48.7]} 14. Nb3 {[%clk 0:04:11.2]} 14... Bg4 {[%clk 0:03:37.3]} 15. Qd4
{[%clk 0:04:03.8]} 15... c5 {[%clk 0:03:15.8]} 16. Qc4 {[%clk 0:03:48.1]} 16...
Be6 {[%clk 0:03:10.7]} 17. Qb5 {[%clk 0:03:38.6]} 17... Qc7 {[%clk 0:02:57.1]}
18. Rad1 {[%clk 0:03:32.7]} 18... a6 {[%clk 0:02:53.3]} 19. Qf1 {[%clk
0:03:22.4]} 19... b5 {[%clk 0:02:39.5]} 20. f3 {[%clk 0:03:20.7]} 20... Bc4
{[%clk 0:02:29.7]} 21. Qf2 {[%clk 0:03:13.3]} 21... b4 {[%clk 0:02:05]} 22. Nb1
{[%clk 0:03:04.8]} 22... a5 {[%clk 0:01:52.9]} 23. N1d2 {[%clk 0:03:02.5]} 23...
Bb5 {[%clk 0:01:49.4]} 24. c4 {[%clk 0:02:50.7]} 24... bxc3 {[%clk 0:01:17.8]}
25. bxc3 {[%clk 0:02:48.6]} 25... a4 {[%clk 0:01:16.6]} 26. Nc1 {[%clk
0:02:45.8]} 26... c4 {[%clk 0:01:07.3]} 27. Ne2 {[%clk 0:02:38.2]} 27... d5
{[%clk 0:00:55.8]} 28. Nd4 {[%clk 0:02:31.7]} 28... Ba6 {[%clk 0:00:49.2]} 29.
e5 {[%clk 0:02:23.3]} 29... Nd7 {[%clk 0:00:47.3]} 30. Bxe7 {[%clk 0:02:20.9]}
30... Rxe7 {[%clk 0:00:46]} 31. f4 {[%clk 0:02:17.3]} 31... Nc5 {[%clk 0:00:40]}
32. Nf5 {[%clk 0:02:15.3]} 32... Ree8 {[%clk 0:00:34.9]} 33. Qg3 {[%clk
0:02:13.1]} 33... g6 {[%clk 0:00:30.9]} 34. Nxh6+ {[%clk 0:02:11]} 34... Kg7
{[%clk 0:00:29.8]} 35. Ng4 {[%clk 0:02:01.6]} 35... Nd3 {[%clk 0:00:19.4]} 36.
Re2 {[%clk 0:01:54.6]} 36... Rab8 {[%clk 0:00:18.4]} 37. Nf6 {[%clk 0:01:48.6]}
37... Rh8 {[%clk 0:00:14.4]} 38. Nf3 {[%clk 0:01:29.8]} 38... Qb6+ {[%clk
0:00:12.6]} 39. Nd4 {[%clk 0:01:28.2]} 39... Qd8 {[%clk 0:00:08.6]} 40. Qg5
{[%clk 0:01:20.5]} 40... Qg8 {[%clk 0:00:04.2]} 41. Nxg8 {[%clk 0:01:18.1]}
41... Rhxg8 {[%clk 0:00:03]} 1-0

[Event "Live Chess"]
[Site "Chess.com"]
[Date "2023.05.21"]
[Round "-"]
[White "f4nomore"]
[Black "TheAuditer"]
[Result "1-0"]
[WhiteElo "1403"]
[BlackElo "1385"]
[TimeControl "300"]
[EndTime "5:21:52 PDT"]
[Termination "f4nomore won on time"]

1. d4 {[%clk 0:04:57.8]} 1... d5 {[%clk 0:04:57.5]} 2. Bg5 {[%clk 0:04:56]} 2...
Nf6 {[%clk 0:04:54.3]} 3. Bxf6 {[%clk 0:04:54.5]} 3... exf6 {[%clk 0:04:52.2]}
4. e3 {[%clk 0:04:53.5]} 4... Bf5 {[%clk 0:04:48.3]} 5. Nf3 {[%clk 0:04:51.8]}
5... c6 {[%clk 0:04:43.1]} 6. Be2 {[%clk 0:04:49.5]} 6... Bd6 {[%clk 0:04:37.9]}
7. O-O {[%clk 0:04:47.3]} 7... Nd7 {[%clk 0:04:31.8]} 8. Nbd2 {[%clk 0:04:46]}
8... O-O {[%clk 0:04:26.2]} 9. c4 {[%clk 0:04:44.6]} 9... dxc4 {[%clk
0:04:21.4]} 10. Nxc4 {[%clk 0:04:42.1]} 10... Bc7 {[%clk 0:04:16.9]} 11. Qb3
{[%clk 0:04:33.4]} 11... Nb6 {[%clk 0:04:14.5]} 12. Rac1 {[%clk 0:04:16.2]}
12... Be6 {[%clk 0:03:45.9]} 13. Qc2 {[%clk 0:04:04]} 13... Nxc4 {[%clk
0:03:39]} 14. Bxc4 {[%clk 0:04:00.5]} 14... Bxc4 {[%clk 0:03:28.9]} 15. Qxc4
{[%clk 0:03:57.5]} 15... Qe7 {[%clk 0:03:12.6]} 16. h3 {[%clk 0:03:55.3]} 16...
Kh8 {[%clk 0:03:04.4]} 17. d5 {[%clk 0:03:49.2]} 17... Rac8 {[%clk 0:02:16.2]}
18. dxc6 {[%clk 0:03:42.5]} 18... Bb6 {[%clk 0:02:11.8]} 19. Qb3 {[%clk
0:03:27]} 19... Rxc6 {[%clk 0:02:06.6]} 20. Rxc6 {[%clk 0:03:24.2]} 20... bxc6
{[%clk 0:02:04.8]} 21. Rc1 {[%clk 0:03:20.7]} 21... c5 {[%clk 0:01:59.9]} 22.
Nh4 {[%clk 0:03:06.4]} 22... Qe4 {[%clk 0:01:48.8]} 23. Nf3 {[%clk 0:02:57.3]}
23... Qb4 {[%clk 0:01:41.4]} 24. Qc2 {[%clk 0:02:50.2]} 24... Rd8 {[%clk
0:01:35.3]} 25. a3 {[%clk 0:02:48.8]} 25... Qb5 {[%clk 0:01:26.1]} 26. b3 {[%clk
0:02:24.2]} 26... Qd3 {[%clk 0:01:22.9]} 27. Qc4 {[%clk 0:02:10.4]} 27... Qxc4
{[%clk 0:01:13.6]} 28. Rxc4 {[%clk 0:02:06.4]} 28... Rd3 {[%clk 0:00:53.7]} 29.
b4 {[%clk 0:02:00.5]} 29... cxb4 {[%clk 0:00:37.6]} 30. axb4 {[%clk 0:01:54.4]}
30... g6 {[%clk 0:00:33]} 31. g3 {[%clk 0:01:51.2]} 31... Kg7 {[%clk 0:00:30.4]}
32. h4 {[%clk 0:01:33]} 32... Rb3 {[%clk 0:00:23.1]} 33. Nd2 {[%clk 0:01:17.4]}
33... Rb2 {[%clk 0:00:19.4]} 34. Ne4 {[%clk 0:01:14.8]} 34... a5 {[%clk
0:00:12.8]} 35. bxa5 {[%clk 0:01:09]} 35... Bxa5 {[%clk 0:00:11.5]} 36. Ra4
{[%clk 0:01:06.4]} 36... Be1 {[%clk 0:00:08.2]} 37. Ra6 {[%clk 0:00:58.6]} 37...
f5 {[%clk 0:00:00.9]} 38. Ng5 {[%clk 0:00:45]} 1-0

[Event "Live Chess"]
[Site "Chess.com"]
[Date "2023.05.21"]
[Round "-"]
[White "ExIsambard"]
[Black "seasidecastle27"]
[Result "0-1"]
[WhiteElo "1900"]
[BlackElo "1891"]
[TimeControl "300"]
[EndTime "5:21:56 PDT"]
[Termination "seasidecastle27 won by checkmate"]

1. d4 {[%clk 0:04:58.4]} 1... d5 {[%clk 0:04:57.1]} 2. Nf3 {[%clk 0:04:57.7]}
2... e6 {[%clk 0:04:56]} 3. Bg5 {[%clk 0:04:57.2]} 3... Be7 {[%clk 0:04:52.6]}
4. h4 {[%clk 0:04:55.4]} 4... h6 {[%clk 0:04:50.7]} 5. Bxe7 {[%clk 0:04:54.2]}
5... Qxe7 {[%clk 0:04:49.3]} 6. c3 {[%clk 0:04:54.1]} 6... Nf6 {[%clk
0:04:47.5]} 7. e3 {[%clk 0:04:54]} 7... c5 {[%clk 0:04:45.9]} 8. Bd3 {[%clk
0:04:53.9]} 8... Nc6 {[%clk 0:04:44.6]} 9. Nbd2 {[%clk 0:04:53.1]} 9... e5
{[%clk 0:04:42]} 10. dxe5 {[%clk 0:04:51.8]} 10... Nxe5 {[%clk 0:04:40.8]} 11.
Nxe5 {[%clk 0:04:50.2]} 11... Qxe5 {[%clk 0:04:39.4]} 12. Nf3 {[%clk 0:04:49.5]}
12... Qe7 {[%clk 0:04:37.5]} 13. Qe2 {[%clk 0:04:45.2]} 13... a6 {[%clk
0:04:34.6]} 14. O-O-O {[%clk 0:04:43.6]} 14... Be6 {[%clk 0:04:31.3]} 15. Kb1
{[%clk 0:04:42.2]} 15... O-O-O {[%clk 0:04:29.3]} 16. Ne5 {[%clk 0:04:19.3]}
16... Kb8 {[%clk 0:04:24.9]} 17. Bxa6 {[%clk 0:04:13.2]} 17... Bc8 {[%clk
0:04:13.1]} 18. f4 {[%clk 0:03:26.7]} 18... Ne4 {[%clk 0:04:10.1]} 19. Bb5
{[%clk 0:03:15.8]} 19... Ng3 {[%clk 0:04:03.6]} 20. Qc2 {[%clk 0:03:14.4]} 20...
Nxh1 {[%clk 0:04:00.9]} 21. Rxh1 {[%clk 0:03:14.3]} 21... g6 {[%clk 0:03:55.2]}
22. Qa4 {[%clk 0:03:12.6]} 22... f6 {[%clk 0:03:45.4]} 23. Nxg6 {[%clk
0:03:07.9]} 23... Bf5+ {[%clk 0:03:43.1]} 24. Ka1 {[%clk 0:03:01.4]} 24... Bxg6
{[%clk 0:03:42.1]} 25. Rd1 {[%clk 0:02:56.8]} 25... Be4 {[%clk 0:03:39.9]} 26.
g3 {[%clk 0:02:54.6]} 26... Rhg8 {[%clk 0:03:37.8]} 27. Qb3 {[%clk 0:02:43.4]}
27... Rxg3 {[%clk 0:03:33.7]} 28. Bc6 {[%clk 0:02:40.4]} 28... Rxe3 {[%clk
0:03:22.2]} 29. a4 {[%clk 0:02:34.5]} 29... d4 {[%clk 0:03:14.2]} 30. Bxe4
{[%clk 0:02:20.3]} 30... Qxe4 {[%clk 0:03:12.4]} 31. a5 {[%clk 0:02:18.9]} 31...
Re1 {[%clk 0:03:07.7]} 32. a6 {[%clk 0:02:16.6]} 32... Rxd1+ {[%clk 0:03:05.1]}
33. Qxd1 {[%clk 0:02:16.5]} 33... bxa6 {[%clk 0:02:58.6]} 34. Qb3+ {[%clk
0:02:14.8]} 34... Kc7 {[%clk 0:02:52.6]} 35. Qf7+ {[%clk 0:02:11.4]} 35... Rd7
{[%clk 0:02:50.3]} 36. Qxf6 {[%clk 0:02:10.4]} 36... dxc3 {[%clk 0:02:44.5]} 37.
Qxc3 {[%clk 0:02:08.2]} 37... Qd4 {[%clk 0:02:34.8]} 38. Qa5+ {[%clk 0:02:05.4]}
38... Kb7 {[%clk 0:02:27.1]} 39. f5 {[%clk 0:02:01]} 39... Qd1+ {[%clk
0:02:22.2]} 40. Ka2 {[%clk 0:01:59.6]} 40... Qd5+ {[%clk 0:02:20.2]} 41. Ka1
{[%clk 0:01:58.6]} 41... Qxf5 {[%clk 0:02:17.9]} 42. Qc3 {[%clk 0:01:56.8]}
42... Rd1+ {[%clk 0:02:15.1]} 43. Ka2 {[%clk 0:01:55.7]} 43... Qd5+ {[%clk
0:02:12]} 44. b3 {[%clk 0:01:48.7]} 44... Rd2+ {[%clk 0:02:09.5]} 45. Ka3 {[%clk
0:01:47.8]} 45... Qd4 {[%clk 0:02:02.2]} 46. Qc1 {[%clk 0:01:39.9]} 46... Qb4#
{[%clk 0:01:57.8]} 0-1

[Event "Live Chess"]
[Site "Chess.com"]
[Date "2023.05.21"]
[Round "-"]
[White "Tushinskiy"]
[Black "Biranidun"]
[Result "0-1"]
[WhiteElo "2211"]
[BlackElo "2523"]
[TimeControl "300"]
[EndTime "5:22:13 PDT"]
[Termination "Biranidun won on time"]

1. d4 {[%clk 0:04:58.7]} 1... Nf6 {[%clk 0:04:57.3]} 2. c3 {[%clk 0:04:58.6]}
2... g6 {[%clk 0:04:56.6]} 3. Nf3 {[%clk 0:04:58.2]} 3... Bg7 {[%clk 0:04:56.2]}
4. Bf4 {[%clk 0:04:57.4]} 4... O-O {[%clk 0:04:55.6]} 5. Bg3 {[%clk 0:04:57.3]}
5... b6 {[%clk 0:04:51.7]} 6. Nbd2 {[%clk 0:04:57.2]} 6... Bb7 {[%clk
0:04:51.2]} 7. e3 {[%clk 0:04:55.5]} 7... c5 {[%clk 0:04:49.2]} 8. Bd3 {[%clk
0:04:54.8]} 8... d6 {[%clk 0:04:47.5]} 9. Qe2 {[%clk 0:04:54]} 9... a6 {[%clk
0:04:46.3]} 10. O-O {[%clk 0:04:53]} 10... Nbd7 {[%clk 0:04:45.6]} 11. Rad1
{[%clk 0:04:52.2]} 11... b5 {[%clk 0:04:43.9]} 12. Rfe1 {[%clk 0:04:50.2]} 12...
Re8 {[%clk 0:04:40.4]} 13. e4 {[%clk 0:04:49.4]} 13... Nh5 {[%clk 0:04:39.4]}
14. e5 {[%clk 0:04:46.9]} 14... Nxg3 {[%clk 0:04:31.5]} 15. hxg3 {[%clk
0:04:45.5]} 15... dxe5 {[%clk 0:04:25.5]} 16. dxe5 {[%clk 0:04:45.4]} 16... e6
{[%clk 0:04:12.1]} 17. Bc2 {[%clk 0:04:42.6]} 17... Qc7 {[%clk 0:04:09.7]} 18.
a4 {[%clk 0:04:39.5]} 18... Bc6 {[%clk 0:03:59.8]} 19. Bd3 {[%clk 0:04:36.5]}
19... c4 {[%clk 0:03:58.6]} 20. Bc2 {[%clk 0:04:33.9]} 20... Rad8 {[%clk
0:03:54]} 21. axb5 {[%clk 0:04:22.4]} 21... axb5 {[%clk 0:03:53.9]} 22. Nf1
{[%clk 0:04:17.9]} 22... Bxf3 {[%clk 0:03:51.5]} 23. gxf3 {[%clk 0:04:16]} 23...
Nxe5 {[%clk 0:03:50.7]} 24. f4 {[%clk 0:04:15.3]} 24... Nd7 {[%clk 0:03:44.5]}
25. Ne3 {[%clk 0:04:12.8]} 25... Nc5 {[%clk 0:03:43.7]} 26. Rxd8 {[%clk
0:04:11.4]} 26... Rxd8 {[%clk 0:03:42.8]} 27. Rd1 {[%clk 0:04:11]} 27... Rxd1+
{[%clk 0:03:41.9]} 28. Qxd1 {[%clk 0:04:10.9]} 28... h5 {[%clk 0:03:39.2]} 29.
Qa1 {[%clk 0:04:07]} 29... Qb7 {[%clk 0:03:34.1]} 30. Qa5 {[%clk 0:04:05.7]}
30... Bf6 {[%clk 0:03:32]} 31. Qa3 {[%clk 0:03:59.1]} 31... Be7 {[%clk
0:03:27.6]} 32. Qa1 {[%clk 0:03:55.6]} 32... Kg7 {[%clk 0:03:25.3]} 33. Qe1
{[%clk 0:03:51.1]} 33... h4 {[%clk 0:03:23.1]} 34. Ng4 {[%clk 0:03:43.3]} 34...
h3 {[%clk 0:03:14.1]} 35. Ne3 {[%clk 0:03:39.5]} 35... Nd3 {[%clk 0:03:10.4]}
36. Qf1 {[%clk 0:03:34.4]} 36... Bc5 {[%clk 0:02:58.6]} 37. Kh2 {[%clk
0:03:13.2]} 37... Qf3 {[%clk 0:02:51.1]} 38. Bxd3 {[%clk 0:03:01.8]} 38... cxd3
{[%clk 0:02:51]} 39. Nd1 {[%clk 0:03:01]} 39... Qe2 {[%clk 0:02:37.5]} 40. Qg1
{[%clk 0:02:52.7]} 40... b4 {[%clk 0:01:53.4]} 41. Kxh3 {[%clk 0:02:39.3]} 41...
b3 {[%clk 0:01:43.7]} 42. Kg2 {[%clk 0:02:36.2]} 42... Qc2 {[%clk 0:01:38.3]}
43. Qf1 {[%clk 0:02:17.2]} 43... f6 {[%clk 0:01:24]} 44. Kf3 {[%clk 0:02:09.9]}
44... Qd2 {[%clk 0:01:18.9]} 45. Kg2 {[%clk 0:02:05.6]} 45... Kf7 {[%clk
0:01:16.7]} 46. Kf3 {[%clk 0:02:03.9]} 46... Ke7 {[%clk 0:01:15.7]} 47. Kg2
{[%clk 0:01:59]} 47... Kd6 {[%clk 0:01:14.6]} 48. Kf3 {[%clk 0:01:49.9]} 48...
e5 {[%clk 0:01:13.3]} 49. fxe5+ {[%clk 0:01:47]} 49... fxe5 {[%clk 0:01:13.2]}
50. Kg2 {[%clk 0:01:46.1]} 50... e4 {[%clk 0:01:12.1]} 51. Kg1 {[%clk
0:01:42.7]} 51... Qe2 {[%clk 0:01:06.2]} 52. Kg2 {[%clk 0:01:39.2]} 52... Qf3+
{[%clk 0:01:03.7]} 53. Kh2 {[%clk 0:01:31.6]} 53... g5 {[%clk 0:01:02.6]} 54. c4
{[%clk 0:01:22.1]} 54... Bd4 {[%clk 0:01:00.7]} 55. Qe1 {[%clk 0:01:16.5]} 55...
Ke6 {[%clk 0:00:51.5]} 56. Qa5 {[%clk 0:01:09.1]} 56... Be5 {[%clk 0:00:39.3]}
57. Qd5+ {[%clk 0:01:03.8]} 57... Kf6 {[%clk 0:00:37.9]} 58. Qd8+ {[%clk
0:01:02.6]} 58... Kg6 {[%clk 0:00:36.3]} 59. Qg8+ {[%clk 0:00:58.5]} 59... Bg7
{[%clk 0:00:33.6]} 60. Qe6+ {[%clk 0:00:57.3]} 60... Kh7 {[%clk 0:00:32.7]} 61.
Qh3+ {[%clk 0:00:51.9]} 61... Kg6 {[%clk 0:00:29.7]} 62. Qe6+ {[%clk 0:00:50.9]}
62... Bf6 {[%clk 0:00:27.8]} 63. Qg8+ {[%clk 0:00:46.8]} 63... Kf5 {[%clk
0:00:26.7]} 64. Ne3+ {[%clk 0:00:44.6]} 64... Qxe3 {[%clk 0:00:23.6]} 65. fxe3
{[%clk 0:00:43.1]} 65... Bxb2 {[%clk 0:00:22.3]} 66. Qd5+ {[%clk 0:00:42.2]}
66... Be5 {[%clk 0:00:21.2]} 67. Qf7+ {[%clk 0:00:37.1]} 67... Bf6 {[%clk
0:00:20]} 68. Qd5+ {[%clk 0:00:33.1]} 68... Be5 {[%clk 0:00:19.1]} 69. Qd7+
{[%clk 0:00:32.1]} 69... Kf6 {[%clk 0:00:18.2]} 70. Qc6+ {[%clk 0:00:29.9]}
70... Kf5 {[%clk 0:00:17.2]} 71. Qc8+ {[%clk 0:00:29.1]} 71... Kf6 {[%clk
0:00:16.3]} 72. Qf8+ {[%clk 0:00:27.7]} 72... Ke6 {[%clk 0:00:15.2]} 73. Qe8+
{[%clk 0:00:23.2]} 73... Kf5 {[%clk 0:00:14.5]} 74. Qf7+ {[%clk 0:00:15.3]}
74... Bf6 {[%clk 0:00:13.7]} 75. Qd5+ {[%clk 0:00:14.4]} 75... Kg6 {[%clk
0:00:13]} 76. Qxe4+ {[%clk 0:00:13.3]} 76... Kg7 {[%clk 0:00:12.9]} 77. Qxd3
{[%clk 0:00:12.7]} 77... b2 {[%clk 0:00:12.8]} 78. Qc3 {[%clk 0:00:11.7]} 78...
Bxc3 {[%clk 0:00:11.8]} 79. c5 {[%clk 0:00:10.9]} 79... b1=Q {[%clk 0:00:11.7]}
80. c6 {[%clk 0:00:10.6]} 80... Qc2+ {[%clk 0:00:11]} 0-1

[Event "Live Chess"]
[Site "Chess.com"]
[Date "2023.05.21"]
[Round "-"]
[White "JoeyCage"]
[Black "ViktorTheCoolBoy"]
[Result "0-1"]
[WhiteElo "2258"]
[BlackElo "2476"]
[TimeControl "300"]
[EndTime "5:22:14 PDT"]
[Termination "ViktorTheCoolBoy won on time"]

1. e4 {[%clk 0:04:56.9]} 1... c6 {[%clk 0:04:58.7]} 2. d4 {[%clk 0:04:52.8]}
2... d5 {[%clk 0:04:58.6]} 3. e5 {[%clk 0:04:50]} 3... Bf5 {[%clk 0:04:53.9]} 4.
c4 {[%clk 0:04:48.9]} 4... e6 {[%clk 0:04:51.6]} 5. Nc3 {[%clk 0:04:47.7]} 5...
h6 {[%clk 0:04:44]} 6. Be3 {[%clk 0:04:45.2]} 6... Ne7 {[%clk 0:04:41.3]} 7. c5
{[%clk 0:04:42.5]} 7... Bh7 {[%clk 0:04:37.4]} 8. Nge2 {[%clk 0:04:39.5]} 8...
Nf5 {[%clk 0:04:35.5]} 9. Ng3 {[%clk 0:04:38.1]} 9... Nxe3 {[%clk 0:04:33.6]}
10. fxe3 {[%clk 0:04:36.9]} 10... Nd7 {[%clk 0:04:25.4]} 11. b4 {[%clk
0:04:33.7]} 11... f6 {[%clk 0:04:22.9]} 12. exf6 {[%clk 0:04:30.5]} 12... Qxf6
{[%clk 0:04:21.2]} 13. Bd3 {[%clk 0:04:27]} 13... Bxd3 {[%clk 0:04:19]} 14. Qxd3
{[%clk 0:04:25.5]} 14... e5 {[%clk 0:04:18.4]} 15. O-O-O {[%clk 0:04:18.7]}
15... e4 {[%clk 0:04:16.6]} 16. Qe2 {[%clk 0:04:17.3]} 16... Qg6 {[%clk
0:04:15.5]} 17. b5 {[%clk 0:04:11.3]} 17... h5 {[%clk 0:04:14.1]} 18. Rhf1
{[%clk 0:04:08.9]} 18... h4 {[%clk 0:04:11.8]} 19. Nf5 {[%clk 0:04:07.7]} 19...
Rh5 {[%clk 0:04:10.4]} 20. g4 {[%clk 0:04:03]} 20... hxg3 {[%clk 0:04:09]} 21.
Nxg3 {[%clk 0:04:01.6]} 21... Rh8 {[%clk 0:04:07.8]} 22. Rf4 {[%clk 0:03:54.7]}
22... Be7 {[%clk 0:04:04.9]} 23. Rdf1 {[%clk 0:03:52]} 23... O-O-O {[%clk
0:04:01.5]} 24. bxc6 {[%clk 0:03:50.2]} 24... Qxc6 {[%clk 0:03:58.7]} 25. Rf7
{[%clk 0:03:46.5]} 25... Bf6 {[%clk 0:03:56.3]} 26. Nf5 {[%clk 0:03:38.5]} 26...
Kb8 {[%clk 0:03:50.5]} 27. Qb5 {[%clk 0:03:32.8]} 27... Nxc5 {[%clk 0:03:46.1]}
28. dxc5 {[%clk 0:03:19]} 28... Bxc3 {[%clk 0:03:43.9]} 29. Qxc6 {[%clk
0:03:16.1]} 29... bxc6 {[%clk 0:03:42.5]} 30. Rf2 {[%clk 0:03:05.5]} 30... Rdf8
{[%clk 0:03:36.8]} 31. Nd6 {[%clk 0:02:36]} 31... Rxf7 {[%clk 0:03:31.7]} 32.
Rxf7 {[%clk 0:02:34.6]} 32... Be5 {[%clk 0:03:26.3]} 33. Rb7+ {[%clk 0:02:20.7]}
33... Ka8 {[%clk 0:03:24.8]} 34. Re7 {[%clk 0:02:19.6]} 34... Bxd6 {[%clk
0:03:21.2]} 35. cxd6 {[%clk 0:02:18.3]} 35... Rd8 {[%clk 0:03:20.4]} 36. d7
{[%clk 0:02:14.6]} 36... Kb7 {[%clk 0:03:18.7]} 37. Rxg7 {[%clk 0:02:13.5]}
37... Kc7 {[%clk 0:03:17.6]} 38. Kc2 {[%clk 0:02:03.5]} 38... Rxd7 {[%clk
0:03:16]} 39. Rg2 {[%clk 0:02:00.6]} 39... Rh7 {[%clk 0:03:14.8]} 40. Kc3 {[%clk
0:01:58.6]} 40... c5 {[%clk 0:03:13.8]} 41. Rg5 {[%clk 0:01:55.3]} 41... Kc6
{[%clk 0:03:08.9]} 42. Rg6+ {[%clk 0:01:54]} 42... Kb5 {[%clk 0:03:07.7]} 43.
Rd6 {[%clk 0:01:46.8]} 43... Rh3 {[%clk 0:03:03.5]} 44. Rxd5 {[%clk 0:01:44.7]}
44... Rxe3+ {[%clk 0:03:02]} 45. Kd2 {[%clk 0:01:40.8]} 45... Rh3 {[%clk
0:03:01.2]} 46. a4+ {[%clk 0:01:36.3]} 46... Kc4 {[%clk 0:02:57.1]} 47. Re5
{[%clk 0:01:35]} 47... Rxh2+ {[%clk 0:02:52.3]} 48. Ke3 {[%clk 0:01:33]} 48...
Kb4 {[%clk 0:02:48.8]} 49. Rxe4+ {[%clk 0:01:27.6]} 49... c4 {[%clk 0:02:47.6]}
50. Re6 {[%clk 0:01:25.8]} 50... a5 {[%clk 0:02:45.9]} 51. Rb6+ {[%clk
0:01:22.9]} 51... Kc3 {[%clk 0:02:42.5]} 52. Rb5 {[%clk 0:01:21.2]} 52... Rh8
{[%clk 0:02:39.8]} 53. Rxa5 {[%clk 0:01:19.7]} 53... Re8+ {[%clk 0:02:38.7]} 54.
Kf2 {[%clk 0:01:18.4]} 54... Kd2 {[%clk 0:02:36.8]} 55. Rd5+ {[%clk 0:01:16.6]}
55... Kc2 {[%clk 0:02:36]} 56. a5 {[%clk 0:01:15.4]} 56... c3 {[%clk 0:02:35.2]}
57. a6 {[%clk 0:01:13.7]} 57... Kb2 {[%clk 0:02:29.1]} 58. Rb5+ {[%clk
0:01:12.3]} 58... Kc1 {[%clk 0:02:28]} 59. a7 {[%clk 0:01:10.6]} 59... Ra8
{[%clk 0:02:26.6]} 60. Ra5 {[%clk 0:01:09.6]} 60... c2 {[%clk 0:02:25.3]} 61.
Ke2 {[%clk 0:01:04.6]} 61... Re8+ {[%clk 0:02:22.3]} 62. Kf2 {[%clk 0:01:03.3]}
62... Kb2 {[%clk 0:02:18.1]} 63. Rb5+ {[%clk 0:00:59.6]} 63... Kc3 {[%clk
0:02:16.9]} 64. Rc5+ {[%clk 0:00:56.5]} 64... Kb3 {[%clk 0:02:15.8]} 65. Rc7
{[%clk 0:00:45.7]} 65... Ra8 {[%clk 0:02:13.3]} 66. Ke2 {[%clk 0:00:43.8]} 66...
Rxa7 {[%clk 0:02:11.1]} 67. Rxa7 {[%clk 0:00:40.6]} 67... c1=Q {[%clk
0:02:09.7]} 68. Rb7+ {[%clk 0:00:39.6]} 68... Ka4 {[%clk 0:02:08.5]} 69. Ra7+
{[%clk 0:00:38.4]} 69... Kb5 {[%clk 0:02:07.4]} 70. Re7 {[%clk 0:00:25.6]} 70...
Qc4+ {[%clk 0:02:05.5]} 71. Ke1 {[%clk 0:00:18]} 71... Qb4+ {[%clk 0:02:04]} 72.
Kd1 {[%clk 0:00:15.8]} 72... Qxe7 {[%clk 0:02:03.9]} 73. Kc2 {[%clk 0:00:15.1]}
73... Kc4 {[%clk 0:01:59.1]} 74. Kd2 {[%clk 0:00:12.1]} 74... Qe4 {[%clk
0:01:58.6]} 75. Kd1 {[%clk 0:00:08]} 75... Kc3 {[%clk 0:01:57.7]} 0-1

[Event "Live Chess"]
[Site "Chess.com"]
[Date "2023.05.21"]
[Round "-"]
[White "LiamClery2020"]
[Black "friarnator"]
[Result "1/2-1/2"]
[WhiteElo "1988"]
[BlackElo "2019"]
[TimeControl "300"]
[EndTime "5:22:14 PDT"]
[Termination "Game drawn by agreement"]

1. e4 {[%clk 0:04:59.3]} 1... d6 {[%clk 0:04:57.2]} 2. d4 {[%clk 0:04:58.2]}
2... Nf6 {[%clk 0:04:56.8]} 3. Nc3 {[%clk 0:04:56.3]} 3... g6 {[%clk 0:04:56.1]}
4. Be3 {[%clk 0:04:54.4]} 4... Bg7 {[%clk 0:04:55.4]} 5. f3 {[%clk 0:04:53.9]}
5... c6 {[%clk 0:04:54.7]} 6. Qd2 {[%clk 0:04:53.2]} 6... b5 {[%clk 0:04:54.1]}
7. Bh6 {[%clk 0:04:52.6]} 7... O-O {[%clk 0:04:52.4]} 8. Bxg7 {[%clk 0:04:51.8]}
8... Kxg7 {[%clk 0:04:52.3]} 9. g4 {[%clk 0:04:51.1]} 9... h5 {[%clk 0:04:49.1]}
10. gxh5 {[%clk 0:04:47.1]} 10... Nxh5 {[%clk 0:04:48.4]} 11. Nge2 {[%clk
0:04:46.3]} 11... b4 {[%clk 0:04:47.5]} 12. Nd1 {[%clk 0:04:45]} 12... a5 {[%clk
0:04:45.2]} 13. Ng3 {[%clk 0:04:44]} 13... Nxg3 {[%clk 0:04:33.5]} 14. hxg3
{[%clk 0:04:41.9]} 14... Rh8 {[%clk 0:04:33.4]} 15. Rxh8 {[%clk 0:04:38.9]}
15... Kxh8 {[%clk 0:04:33.3]} 16. Qh6+ {[%clk 0:04:37.4]} 16... Kg8 {[%clk
0:04:32.7]} 17. Bd3 {[%clk 0:04:34]} 17... Qf8 {[%clk 0:04:31.6]} 18. Qh4 {[%clk
0:04:31.5]} 18... Ba6 {[%clk 0:04:14.3]} 19. Ne3 {[%clk 0:04:26.3]} 19... Bxd3
{[%clk 0:04:07.4]} 20. cxd3 {[%clk 0:04:26.2]} 20... Nd7 {[%clk 0:04:03.8]} 21.
O-O-O {[%clk 0:04:19.5]} 1/2-1/2